[Event "*** SCC Grand Prix: Titled Tuesday Blitz"]
[Site "Chess.com"]
[Date "2020.10.13"]
[Round "3"]
[White "ApacheSVD"]
[Black "CaspiIsrael"]
[Result "0-1"]
[WhiteElo "2393"]
[BlackElo "2589"]
[TimeControl "180+1"]
[EndTime "10:24:07 PDT"]
[Termination "CaspiIsrael won by checkmate"]

1. e4 {[%clk 0:03:00.9]} 1... e5 {[%clk 0:02:59.6]} 2. Nf3 {[%clk 0:03:00.9]}
2... Nc6 {[%clk 0:03:00]} 3. Nc3 {[%clk 0:02:58.5]} 3... Nf6 {[%clk 0:02:59.7]}
4. a3 {[%clk 0:02:58.9]} 4... d5 {[%clk 0:02:57.7]} 5. Bb5 {[%clk 0:02:57.8]}
5... Nxe4 {[%clk 0:02:49.8]} 6. Qe2 {[%clk 0:02:57]} 6... Qd6 {[%clk 0:02:47.2]}
7. Nxe4 {[%clk 0:02:53.4]} 7... dxe4 {[%clk 0:02:44.3]} 8. Qxe4 {[%clk
0:02:54.3]} 8... Bd7 {[%clk 0:02:39.2]} 9. d4 {[%clk 0:02:47.1]} 9... O-O-O
{[%clk 0:02:35.9]} 10. dxe5 {[%clk 0:01:55.9]} 10... Nxe5 {[%clk 0:02:30.4]} 11.
Nxe5 {[%clk 0:01:46.1]} 11... Bxb5 {[%clk 0:02:25.8]} 12. Nxf7 {[%clk
0:01:46.2]} 12... Qd1# {[%clk 0:02:22.1]} 0-1

[Event "*** SCC Grand Prix: Titled Tuesday Blitz"]
[Site "Chess.com"]
[Date "2020.10.13"]
[Round "3"]
[White "ASVZ"]
[Black "731291"]
[Result "1-0"]
[WhiteElo "2442"]
[BlackElo "2629"]
[TimeControl "180+1"]
[EndTime "10:24:18 PDT"]
[Termination "ASVZ won by checkmate"]

1. e4 {[%clk 0:03:00.9]} 1... c5 {[%clk 0:02:58.9]} 2. c3 {[%clk 0:03:00.9]}
2... Nf6 {[%clk 0:02:52.2]} 3. e5 {[%clk 0:03:01.2]} 3... Nd5 {[%clk 0:02:52.3]}
4. d4 {[%clk 0:03:02.1]} 4... cxd4 {[%clk 0:02:53.2]} 5. Qxd4 {[%clk 0:03:02.7]}
5... Nc7 {[%clk 0:02:51.5]} 6. Nf3 {[%clk 0:03:00.9]} 6... Nc6 {[%clk
0:02:51.5]} 7. Qh4 {[%clk 0:03:01.1]} 7... e6 {[%clk 0:02:48.3]} 8. Bg5 {[%clk
0:03:00.6]} 8... Be7 {[%clk 0:02:48.7]} 9. Bxe7 {[%clk 0:02:49.4]} 9... Qxe7
{[%clk 0:02:49.6]} 10. Qg3 {[%clk 0:02:47]} 10... O-O {[%clk 0:02:48.8]} 11. Bd3
{[%clk 0:02:44.3]} 11... b6 {[%clk 0:02:42.5]} 12. Bxh7+ {[%clk 0:02:40.7]}
12... Kxh7 {[%clk 0:02:39.7]} 13. Ng5+ {[%clk 0:02:40.8]} 13... Kh6 {[%clk
0:02:35.8]} 14. f4 {[%clk 0:02:19.8]} 14... Kg6 {[%clk 0:01:54.8]} 15. Nxe6+
{[%clk 0:02:16.2]} 15... Kh7 {[%clk 0:01:50.2]} 16. Qxg7# {[%clk 0:02:15.6]} 1-0

[Event "*** SCC Grand Prix: Titled Tuesday Blitz"]
[Site "Chess.com"]
[Date "2020.10.13"]
[Round "3"]
[White "MatyChess1"]
[Black "chessfrendz"]
[Result "1-0"]
[WhiteElo "2575"]
[BlackElo "2379"]
[TimeControl "180+1"]
[EndTime "10:24:21 PDT"]
[Termination "MatyChess1 won by resignation"]

1. e4 {[%clk 0:02:59.5]} 1... c5 {[%clk 0:02:54.6]} 2. Nf3 {[%clk 0:02:57.4]}
2... d6 {[%clk 0:02:54.6]} 3. Nc3 {[%clk 0:02:56]} 3... Nf6 {[%clk 0:02:48.1]}
4. e5 {[%clk 0:02:55.6]} 4... dxe5 {[%clk 0:02:47.1]} 5. Nxe5 {[%clk 0:02:56.5]}
5... a6 {[%clk 0:02:46.3]} 6. g3 {[%clk 0:02:55.4]} 6... e6 {[%clk 0:02:39.2]}
7. Bg2 {[%clk 0:02:53.7]} 7... Bd6 {[%clk 0:02:36.9]} 8. d4 {[%clk 0:02:53.7]}
8... cxd4 {[%clk 0:02:35.5]} 9. Qxd4 {[%clk 0:02:52.8]} 9... O-O {[%clk
0:02:23.8]} 10. Bf4 {[%clk 0:02:50.4]} 10... Qc7 {[%clk 0:02:13.6]} 11. O-O-O
{[%clk 0:02:47.9]} 11... Nc6 {[%clk 0:01:59]} 12. Qxd6 {[%clk 0:02:44.8]} 12...
Qxd6 {[%clk 0:01:56.4]} 13. Rxd6 {[%clk 0:02:45.7]} 13... Nxe5 {[%clk 0:01:52]}
14. Bxe5 {[%clk 0:02:46.6]} 14... Ng4 {[%clk 0:01:52]} 15. Bd4 {[%clk
0:02:42.6]} 15... e5 {[%clk 0:01:51.5]} 16. Bb6 {[%clk 0:02:42.4]} 16... Be6
{[%clk 0:01:49.1]} 17. h3 {[%clk 0:02:40.5]} 17... Nf6 {[%clk 0:01:48]} 18. Rhd1
{[%clk 0:02:40.7]} 18... h6 {[%clk 0:01:44.2]} 19. Rd8 {[%clk 0:02:39.2]} 19...
Raxd8 {[%clk 0:01:42.9]} 20. Rxd8 {[%clk 0:02:40.1]} 20... Rxd8 {[%clk
0:01:42.4]} 21. Bxd8 {[%clk 0:02:41]} 1-0

[Event "*** SCC Grand Prix: Titled Tuesday Blitz"]
[Site "Chess.com"]
[Date "2020.10.13"]
[Round "3"]
[White "smshk35"]
[Black "KuzubovYuriy"]
[Result "0-1"]
[WhiteElo "2467"]
[BlackElo "2881"]
[TimeControl "180+1"]
[EndTime "10:24:40 PDT"]
[Termination "KuzubovYuriy won by resignation"]

1. e4 {[%clk 0:03:00.9]} 1... c5 {[%clk 0:02:59.4]} 2. Nf3 {[%clk 0:03:00.9]}
2... Nc6 {[%clk 0:02:59.6]} 3. d4 {[%clk 0:03:01.2]} 3... cxd4 {[%clk
0:02:59.7]} 4. Nxd4 {[%clk 0:03:02.1]} 4... Nf6 {[%clk 0:03:00.3]} 5. Nc3 {[%clk
0:03:02.2]} 5... e5 {[%clk 0:03:01]} 6. Ndb5 {[%clk 0:03:02.4]} 6... d6 {[%clk
0:03:01.6]} 7. Bg5 {[%clk 0:03:02.7]} 7... Be7 {[%clk 0:03:01.8]} 8. Bxf6 {[%clk
0:02:58.2]} 8... gxf6 {[%clk 0:03:01.1]} 9. Nd5 {[%clk 0:02:55.6]} 9... O-O
{[%clk 0:03:01]} 10. Bd3 {[%clk 0:02:46.9]} 10... Kh8 {[%clk 0:02:55]} 11. c3
{[%clk 0:02:34]} 11... Rg8 {[%clk 0:02:51.2]} 12. Qf3 {[%clk 0:02:27.9]} 12...
Bg4 {[%clk 0:02:42.5]} 13. Qe3 {[%clk 0:02:24.2]} 13... Be6 {[%clk 0:02:40.3]}
14. Na3 {[%clk 0:02:17.5]} 14... f5 {[%clk 0:02:34.8]} 15. Nxe7 {[%clk
0:02:04.2]} 15... Nxe7 {[%clk 0:02:29.9]} 16. exf5 {[%clk 0:01:54.1]} 16... Nxf5
{[%clk 0:02:29.2]} 17. Qh3 {[%clk 0:01:35.1]} 17... Nh4 {[%clk 0:02:25]} 0-1

[Event "*** SCC Grand Prix: Titled Tuesday Blitz"]
[Site "Chess.com"]
[Date "2020.10.13"]
[Round "3"]
[White "Smirnov_Pavel"]
[Black "tlomigtlis"]
[Result "1-0"]
[WhiteElo "2835"]
[BlackElo "2630"]
[TimeControl "180+1"]
[EndTime "10:24:43 PDT"]
[Termination "Smirnov_Pavel won by resignation"]

1. d4 {[%clk 0:03:00.9]} 1... d5 {[%clk 0:02:59.4]} 2. c4 {[%clk 0:03:00.5]}
2... c6 {[%clk 0:02:59.2]} 3. cxd5 {[%clk 0:03:00]} 3... cxd5 {[%clk 0:02:59]}
4. Bf4 {[%clk 0:03:00.6]} 4... Nf6 {[%clk 0:02:57.6]} 5. e3 {[%clk 0:03:00.1]}
5... a6 {[%clk 0:02:57.8]} 6. Nc3 {[%clk 0:02:59.6]} 6... Nc6 {[%clk 0:02:58.1]}
7. Be2 {[%clk 0:02:59.1]} 7... Bf5 {[%clk 0:02:58.1]} 8. Nf3 {[%clk 0:02:58.3]}
8... e6 {[%clk 0:02:58.5]} 9. Qb3 {[%clk 0:02:56.8]} 9... Bb4 {[%clk 0:02:54.8]}
10. Ne5 {[%clk 0:02:55.7]} 10... O-O {[%clk 0:02:51.8]} 11. Nxc6 {[%clk
0:02:53.1]} 11... Bxc3+ {[%clk 0:02:51.8]} 12. Qxc3 {[%clk 0:02:51.6]} 12...
bxc6 {[%clk 0:02:52.7]} 13. O-O {[%clk 0:02:43.9]} 13... Qb6 {[%clk 0:02:50.9]}
14. Rac1 {[%clk 0:02:22.5]} 14... Ne4 {[%clk 0:02:47]} 15. Qa3 {[%clk
0:02:21.9]} 15... Rfc8 {[%clk 0:02:42.4]} 16. f3 {[%clk 0:02:21.2]} 16... Nf6
{[%clk 0:02:33.6]} 17. Rc3 {[%clk 0:02:21.3]} 17... Nd7 {[%clk 0:02:17.1]} 18.
Rfc1 {[%clk 0:02:20.1]} 18... a5 {[%clk 0:02:17]} 19. Rb3 {[%clk 0:02:11.4]}
19... Qa7 {[%clk 0:02:11.3]} 20. Qd6 {[%clk 0:02:11.2]} 20... c5 {[%clk
0:02:09.7]} 21. dxc5 {[%clk 0:02:02.3]} 21... Nxc5 {[%clk 0:02:09.6]} 22. Rbc3
{[%clk 0:02:00]} 1-0

[Event "*** SCC Grand Prix: Titled Tuesday Blitz"]
[Site "Chess.com"]
[Date "2020.10.13"]
[Round "3"]
[White "Gerodot71"]
[Black "VerdeNotte"]
[Result "0-1"]
[WhiteElo "2459"]
[BlackElo "2825"]
[TimeControl "180+1"]
[EndTime "10:24:47 PDT"]
[Termination "VerdeNotte won by resignation"]

1. d4 {[%clk 0:03:00.9]} 1... Nf6 {[%clk 0:02:59.7]} 2. c4 {[%clk 0:03:01.2]}
2... d6 {[%clk 0:03:00]} 3. Nc3 {[%clk 0:02:59.1]} 3... g6 {[%clk 0:02:59.7]} 4.
e4 {[%clk 0:02:58.7]} 4... Bg7 {[%clk 0:02:59.8]} 5. Be2 {[%clk 0:02:59.3]} 5...
O-O {[%clk 0:03:00]} 6. Be3 {[%clk 0:02:59.8]} 6... c5 {[%clk 0:02:59.6]} 7.
dxc5 {[%clk 0:02:58.6]} 7... dxc5 {[%clk 0:02:57.8]} 8. e5 {[%clk 0:02:57.9]}
8... Nfd7 {[%clk 0:02:55.7]} 9. f4 {[%clk 0:02:57.5]} 9... Nc6 {[%clk
0:02:55.6]} 10. Nf3 {[%clk 0:02:57.2]} 10... b6 {[%clk 0:02:51]} 11. O-O {[%clk
0:02:54.5]} 11... Bb7 {[%clk 0:02:51.5]} 12. Qc2 {[%clk 0:02:51.5]} 12... e6
{[%clk 0:02:50.9]} 13. Rad1 {[%clk 0:02:50.4]} 13... f6 {[%clk 0:02:48.9]} 14.
Rd6 {[%clk 0:02:12.4]} 14... fxe5 {[%clk 0:02:44.4]} 15. Rfd1 {[%clk 0:02:11.6]}
15... Nd4 {[%clk 0:02:44.1]} 16. Qd2 {[%clk 0:01:50.2]} 16... Qe7 {[%clk
0:02:34.6]} 17. fxe5 {[%clk 0:01:46.5]} 17... Nxe5 {[%clk 0:02:25.1]} 18. Rxd4
{[%clk 0:01:26.1]} 18... Nxf3+ {[%clk 0:02:24.4]} 19. gxf3 {[%clk 0:01:26.3]}
19... cxd4 {[%clk 0:02:24.4]} 20. Bxd4 {[%clk 0:01:26.7]} 20... Rad8 {[%clk
0:02:24]} 0-1

[Event "*** SCC Grand Prix: Titled Tuesday Blitz"]
[Site "Chess.com"]
[Date "2020.10.13"]
[Round "3"]
[White "GianmarcoVaR"]
[Black "chito89"]
[Result "1-0"]
[WhiteElo "2593"]
[BlackElo "2792"]
[TimeControl "180+1"]
[EndTime "10:24:54 PDT"]
[Termination "GianmarcoVaR won by checkmate"]

1. d4 {[%clk 0:03:00.9]} 1... Nf6 {[%clk 0:02:54.7]} 2. c4 {[%clk 0:03:01.2]}
2... e6 {[%clk 0:02:52.9]} 3. g3 {[%clk 0:03:01]} 3... Bb4+ {[%clk 0:02:52.2]}
4. Bd2 {[%clk 0:02:59.6]} 4... a5 {[%clk 0:02:52.1]} 5. Bg2 {[%clk 0:02:57.8]}
5... O-O {[%clk 0:02:49.9]} 6. Nf3 {[%clk 0:02:48.7]} 6... d5 {[%clk 0:02:49.7]}
7. Qc2 {[%clk 0:02:44.1]} 7... c5 {[%clk 0:02:44.5]} 8. dxc5 {[%clk 0:02:33.8]}
8... d4 {[%clk 0:02:42.9]} 9. Bxb4 {[%clk 0:02:27.6]} 9... axb4 {[%clk
0:02:43.8]} 10. Nbd2 {[%clk 0:02:28.1]} 10... Nc6 {[%clk 0:02:42.9]} 11. O-O
{[%clk 0:02:19.6]} 11... Qe7 {[%clk 0:02:38.9]} 12. Ng5 {[%clk 0:02:14.5]} 12...
e5 {[%clk 0:02:23.6]} 13. Nde4 {[%clk 0:02:02.3]} 13... Ne8 {[%clk 0:02:21.3]}
14. Nxh7 {[%clk 0:01:56.6]} 14... f5 {[%clk 0:02:18.7]} 15. Nxf8 {[%clk
0:01:45.4]} 15... Qxf8 {[%clk 0:02:10.2]} 16. Ng5 {[%clk 0:01:41.9]} 16... Qxc5
{[%clk 0:02:08.9]} 17. Bd5+ {[%clk 0:01:40.2]} 17... Kf8 {[%clk 0:02:08.1]} 18.
Be6 {[%clk 0:01:33.1]} 18... Ne7 {[%clk 0:02:07]} 19. Nh7# {[%clk 0:01:30.3]}
1-0

[Event "*** SCC Grand Prix: Titled Tuesday Blitz"]
[Site "Chess.com"]
[Date "2020.10.13"]
[Round "3"]
[White "maximnovik"]
[Black "swimmerchess"]
[Result "0-1"]
[WhiteElo "2538"]
[BlackElo "2773"]
[TimeControl "180+1"]
[EndTime "10:25:06 PDT"]
[Termination "swimmerchess won by resignation"]

1. Nf3 {[%clk 0:03:00.9]} 1... Nf6 {[%clk 0:02:59.7]} 2. g3 {[%clk 0:03:01.1]}
2... g6 {[%clk 0:02:59.9]} 3. Bg2 {[%clk 0:03:01.3]} 3... Bg7 {[%clk 0:03:00.8]}
4. c4 {[%clk 0:03:01.1]} 4... O-O {[%clk 0:03:01.7]} 5. d4 {[%clk 0:03:01.2]}
5... d6 {[%clk 0:03:02]} 6. O-O {[%clk 0:03:01.2]} 6... Nbd7 {[%clk 0:03:02.9]}
7. Nc3 {[%clk 0:03:01.3]} 7... e5 {[%clk 0:03:03.8]} 8. h3 {[%clk 0:03:01.8]}
8... Re8 {[%clk 0:03:01.1]} 9. e4 {[%clk 0:03:01.8]} 9... exd4 {[%clk
0:03:00.6]} 10. Nxd4 {[%clk 0:03:00.8]} 10... a6 {[%clk 0:03:01.5]} 11. b3
{[%clk 0:02:43.8]} 11... Rb8 {[%clk 0:03:00.4]} 12. Be3 {[%clk 0:02:32.2]} 12...
c5 {[%clk 0:02:56.2]} 13. Nde2 {[%clk 0:02:30.3]} 13... b5 {[%clk 0:02:57.1]}
14. cxb5 {[%clk 0:02:17.7]} 14... axb5 {[%clk 0:02:58]} 15. Qc2 {[%clk
0:02:15.5]} 15... b4 {[%clk 0:02:56.9]} 16. Na4 {[%clk 0:02:13.5]} 16... Bb7
{[%clk 0:02:57.2]} 17. f3 {[%clk 0:01:51.1]} 17... d5 {[%clk 0:02:57]} 18. Nxc5
{[%clk 0:01:47.5]} 18... Nxc5 {[%clk 0:02:55.2]} 19. Qxc5 {[%clk 0:01:41.6]}
19... dxe4 {[%clk 0:02:55.1]} 20. Rad1 {[%clk 0:01:35.5]} 20... Nd7 {[%clk
0:02:37.9]} 21. Qb5 {[%clk 0:01:27.7]} 21... exf3 {[%clk 0:02:33.7]} 22. Rxd7
{[%clk 0:01:21.8]} 22... fxg2 {[%clk 0:02:33.4]} 23. Rxd8 {[%clk 0:01:17.5]}
23... gxf1=Q+ {[%clk 0:02:33.2]} 24. Kxf1 {[%clk 0:01:16.7]} 24... Rexd8 {[%clk
0:02:32.4]} 25. Bf4 {[%clk 0:01:15.1]} 25... Bg2+ {[%clk 0:02:31.3]} 0-1

[Event "*** SCC Grand Prix: Titled Tuesday Blitz"]
[Site "Chess.com"]
[Date "2020.10.13"]
[Round "3"]
[White "seorobert1971"]
[Black "LiemLe"]
[Result "0-1"]
[WhiteElo "2720"]
[BlackElo "2983"]
[TimeControl "180+1"]
[EndTime "10:25:10 PDT"]
[Termination "LiemLe won by resignation"]

1. c4 {[%clk 0:03:00.9]} 1... e5 {[%clk 0:02:59.5]} 2. Nc3 {[%clk 0:03:01]} 2...
Nf6 {[%clk 0:02:59.8]} 3. Nf3 {[%clk 0:03:01]} 3... Nc6 {[%clk 0:02:59.5]} 4. g3
{[%clk 0:03:01.1]} 4... Bc5 {[%clk 0:02:52.3]} 5. Bg2 {[%clk 0:02:57.9]} 5... d6
{[%clk 0:02:52.3]} 6. d3 {[%clk 0:02:56.6]} 6... a6 {[%clk 0:02:50.7]} 7. O-O
{[%clk 0:02:48.8]} 7... O-O {[%clk 0:02:50.6]} 8. Bg5 {[%clk 0:02:48.4]} 8... h6
{[%clk 0:02:51.1]} 9. Bxf6 {[%clk 0:02:48.1]} 9... Qxf6 {[%clk 0:02:52]} 10. Ne4
{[%clk 0:02:48.2]} 10... Qe7 {[%clk 0:02:52.4]} 11. Nxc5 {[%clk 0:02:48.4]}
11... dxc5 {[%clk 0:02:53.3]} 12. Nd2 {[%clk 0:02:46.9]} 12... Nd4 {[%clk
0:02:46]} 13. e3 {[%clk 0:02:45.6]} 13... Ne6 {[%clk 0:02:44.1]} 14. Qe2 {[%clk
0:02:45.5]} 14... Rd8 {[%clk 0:02:41.5]} 15. Rfd1 {[%clk 0:02:44.3]} 15... a5
{[%clk 0:02:34.9]} 16. Nb1 {[%clk 0:02:41.1]} 16... Ra6 {[%clk 0:02:31.1]} 17.
Nc3 {[%clk 0:02:39.6]} 17... Rad6 {[%clk 0:02:31.7]} 18. Ne4 {[%clk 0:02:36.9]}
18... R6d7 {[%clk 0:02:31.2]} 19. Bh3 {[%clk 0:02:35.6]} 19... b6 {[%clk
0:02:30.4]} 20. Nc3 {[%clk 0:02:31.1]} 20... Bb7 {[%clk 0:02:27.1]} 21. Bg2
{[%clk 0:02:25]} 21... Bxg2 {[%clk 0:02:25.9]} 22. Kxg2 {[%clk 0:02:24.9]} 22...
Rd6 {[%clk 0:02:17.5]} 23. Ne4 {[%clk 0:02:23]} 23... R6d7 {[%clk 0:02:16.7]}
24. Nc3 {[%clk 0:02:23.1]} 24... Qd6 {[%clk 0:02:16]} 25. Rd2 {[%clk 0:02:19.6]}
25... Qc6+ {[%clk 0:02:13.3]} 26. Kg1 {[%clk 0:02:19.7]} 26... Ng5 {[%clk
0:02:06.5]} 27. Nd5 {[%clk 0:02:09.6]} 27... Rxd5 {[%clk 0:02:06.1]} 28. cxd5
{[%clk 0:02:09.4]} 28... Qxd5 {[%clk 0:02:07]} 29. Rdd1 {[%clk 0:01:41.8]} 29...
Nh3+ {[%clk 0:02:06.1]} 0-1

[Event "*** SCC Grand Prix: Titled Tuesday Blitz"]
[Site "Chess.com"]
[Date "2020.10.13"]
[Round "3"]
[White "Nemsko"]
[Black "DenLaz"]
[Result "0-1"]
[WhiteElo "2364"]
[BlackElo "2806"]
[TimeControl "180+1"]
[EndTime "10:25:10 PDT"]
[Termination "DenLaz won by resignation"]

1. e4 {[%clk 0:03:00.9]} 1... e5 {[%clk 0:02:57.9]} 2. Nf3 {[%clk 0:03:01]} 2...
Nc6 {[%clk 0:02:58.3]} 3. Bb5 {[%clk 0:03:01.1]} 3... a6 {[%clk 0:02:58]} 4. Ba4
{[%clk 0:03:00.5]} 4... d6 {[%clk 0:02:58.5]} 5. h3 {[%clk 0:02:57.8]} 5... Bd7
{[%clk 0:02:57.1]} 6. c3 {[%clk 0:02:57.9]} 6... g6 {[%clk 0:02:57.3]} 7. O-O
{[%clk 0:02:58]} 7... Bg7 {[%clk 0:02:57.8]} 8. d4 {[%clk 0:02:56.9]} 8... Nf6
{[%clk 0:02:58.4]} 9. Re1 {[%clk 0:02:55.9]} 9... O-O {[%clk 0:02:57.4]} 10. d5
{[%clk 0:02:46.7]} 10... Ne7 {[%clk 0:02:57]} 11. Bc2 {[%clk 0:02:44.6]} 11...
h6 {[%clk 0:02:53.6]} 12. c4 {[%clk 0:02:44.9]} 12... Ne8 {[%clk 0:02:52]} 13.
Nc3 {[%clk 0:02:38.9]} 13... f5 {[%clk 0:02:51.4]} 14. b4 {[%clk 0:02:38.5]}
14... f4 {[%clk 0:02:51]} 15. c5 {[%clk 0:02:37.2]} 15... g5 {[%clk 0:02:51.5]}
16. a4 {[%clk 0:02:31.4]} 16... Ng6 {[%clk 0:02:51.7]} 17. Ba3 {[%clk
0:02:23.2]} 17... h5 {[%clk 0:02:51.2]} 18. b5 {[%clk 0:02:22.5]} 18... g4
{[%clk 0:02:50.4]} 19. Nh2 {[%clk 0:02:16.8]} 19... f3 {[%clk 0:02:44.2]} 20. g3
{[%clk 0:01:48.3]} 20... h4 {[%clk 0:02:42.8]} 21. Nxg4 {[%clk 0:01:19.2]} 21...
hxg3 {[%clk 0:02:39]} 22. Re3 {[%clk 0:01:13.6]} 22... Bxg4 {[%clk 0:02:35.6]}
23. hxg4 {[%clk 0:01:13.4]} 23... Qh4 {[%clk 0:02:30.3]} 24. Rxf3 {[%clk
0:01:07.9]} 24... Qh2+ {[%clk 0:02:29.9]} 25. Kf1 {[%clk 0:01:08]} 25... Qh1+
{[%clk 0:02:29.9]} 0-1

[Event "*** SCC Grand Prix: Titled Tuesday Blitz"]
[Site "Chess.com"]
[Date "2020.10.13"]
[Round "3"]
[White "Ze-Pequeno"]
[Black "Obito24"]
[Result "1-0"]
[WhiteElo "2160"]
[BlackElo "2517"]
[TimeControl "180+1"]
[EndTime "10:25:15 PDT"]
[Termination "Ze-Pequeno won by resignation"]

1. e4 {[%clk 0:03:00.9]} 1... c5 {[%clk 0:02:55.2]} 2. Nf3 {[%clk 0:02:59.9]}
2... d6 {[%clk 0:02:51.7]} 3. d4 {[%clk 0:02:59.9]} 3... cxd4 {[%clk 0:02:52.6]}
4. Nxd4 {[%clk 0:03:00.5]} 4... Nf6 {[%clk 0:02:48.5]} 5. Nc3 {[%clk 0:03:00.9]}
5... a6 {[%clk 0:02:45.2]} 6. f4 {[%clk 0:03:00.6]} 6... e6 {[%clk 0:02:43.8]}
7. Qf3 {[%clk 0:02:59.8]} 7... Be7 {[%clk 0:02:44.2]} 8. g4 {[%clk 0:02:59.6]}
8... e5 {[%clk 0:02:34.1]} 9. Nf5 {[%clk 0:02:58.6]} 9... O-O {[%clk 0:02:25.9]}
10. g5 {[%clk 0:02:53.8]} 10... Nfd7 {[%clk 0:02:09.1]} 11. Nxe7+ {[%clk
0:02:52]} 11... Qxe7 {[%clk 0:02:07.1]} 12. Nd5 {[%clk 0:02:51.6]} 12... Qd8
{[%clk 0:02:07.3]} 13. f5 {[%clk 0:02:50]} 13... Nc6 {[%clk 0:02:05.8]} 14. Be3
{[%clk 0:02:48.7]} 14... Nd4 {[%clk 0:02:01.7]} 15. Qf2 {[%clk 0:02:09.3]} 15...
Nc5 {[%clk 0:01:50.4]} 16. Bg2 {[%clk 0:02:03.4]} 16... Qa5+ {[%clk 0:01:47]}
17. b4 {[%clk 0:02:01.3]} 17... Qa3 {[%clk 0:01:40.5]} 18. bxc5 {[%clk
0:01:49.1]} 18... Qc3+ {[%clk 0:01:33.6]} 19. Nxc3 {[%clk 0:01:47.9]} 1-0

[Event "*** SCC Grand Prix: Titled Tuesday Blitz"]
[Site "Chess.com"]
[Date "2020.10.13"]
[Round "3"]
[White "Vandros57"]
[Black "GM4life"]
[Result "0-1"]
[WhiteElo "2186"]
[BlackElo "2350"]
[TimeControl "180+1"]
[EndTime "10:25:29 PDT"]
[Termination "GM4life won by resignation"]

1. d4 {[%clk 0:03:00.9]} 1... Nf6 {[%clk 0:02:58.1]} 2. Nf3 {[%clk 0:02:59.5]}
2... d5 {[%clk 0:02:57.7]} 3. c4 {[%clk 0:02:58]} 3... e6 {[%clk 0:02:57.5]} 4.
Nc3 {[%clk 0:02:56.8]} 4... c6 {[%clk 0:02:57.5]} 5. Bg5 {[%clk 0:02:54.5]} 5...
h6 {[%clk 0:02:56.6]} 6. Bxf6 {[%clk 0:02:53.2]} 6... Qxf6 {[%clk 0:02:55.9]} 7.
e3 {[%clk 0:02:51.8]} 7... Bb4 {[%clk 0:02:56.2]} 8. Rc1 {[%clk 0:02:47.8]} 8...
O-O {[%clk 0:02:56.4]} 9. Be2 {[%clk 0:02:44.7]} 9... dxc4 {[%clk 0:02:56]} 10.
Bxc4 {[%clk 0:02:43.4]} 10... b5 {[%clk 0:02:56.9]} 11. Bd3 {[%clk 0:02:41.1]}
11... Nd7 {[%clk 0:02:56.8]} 12. O-O {[%clk 0:02:40.1]} 12... Bb7 {[%clk
0:02:56]} 13. a3 {[%clk 0:02:32.7]} 13... Bxc3 {[%clk 0:02:50.6]} 14. Rxc3
{[%clk 0:02:31.3]} 14... e5 {[%clk 0:02:48.8]} 15. dxe5 {[%clk 0:02:29]} 15...
Nxe5 {[%clk 0:02:49.7]} 16. Nxe5 {[%clk 0:02:27.5]} 16... Qxe5 {[%clk
0:02:50.4]} 17. Qc2 {[%clk 0:02:14.4]} 17... Rad8 {[%clk 0:02:50]} 18. b4 {[%clk
0:02:11.2]} 18... Rd6 {[%clk 0:02:44.1]} 19. Be4 {[%clk 0:02:06.5]} 19... Rc8
{[%clk 0:02:30.8]} 20. Rc1 {[%clk 0:02:02.2]} 20... Rcd8 {[%clk 0:02:19.3]} 21.
g3 {[%clk 0:01:53.5]} 21... Rd2 {[%clk 0:02:17.4]} 22. Qb1 {[%clk 0:01:38.3]}
22... Qf6 {[%clk 0:02:02.6]} 23. Rf1 {[%clk 0:01:28.1]} 23... Qxc3 {[%clk
0:02:01.4]} 0-1

[Event "*** SCC Grand Prix: Titled Tuesday Blitz"]
[Site "Chess.com"]
[Date "2020.10.13"]
[Round "3"]
[White "canary2016"]
[Black "Sanyura"]
[Result "0-1"]
[WhiteElo "1950"]
[BlackElo "2482"]
[TimeControl "180+1"]
[EndTime "10:25:31 PDT"]
[Termination "Sanyura won by checkmate"]

1. d4 {[%clk 0:03:00.9]} 1... Nf6 {[%clk 0:02:58.9]} 2. c4 {[%clk 0:03:00.3]}
2... c5 {[%clk 0:02:58.9]} 3. d5 {[%clk 0:03:00.1]} 3... b5 {[%clk 0:02:58.8]}
4. cxb5 {[%clk 0:02:59.7]} 4... a6 {[%clk 0:02:59.1]} 5. e3 {[%clk 0:02:59.7]}
5... g6 {[%clk 0:02:58.1]} 6. Nc3 {[%clk 0:02:57.9]} 6... Bg7 {[%clk 0:02:57.9]}
7. Nf3 {[%clk 0:02:57.5]} 7... O-O {[%clk 0:02:57.7]} 8. Be2 {[%clk 0:02:49.6]}
8... e6 {[%clk 0:02:57.6]} 9. O-O {[%clk 0:02:42.2]} 9... axb5 {[%clk
0:02:54.9]} 10. Bxb5 {[%clk 0:02:39.6]} 10... Bb7 {[%clk 0:02:55.3]} 11. dxe6
{[%clk 0:02:37.4]} 11... fxe6 {[%clk 0:02:53.4]} 12. a4 {[%clk 0:02:27.3]} 12...
d5 {[%clk 0:02:52.4]} 13. Qc2 {[%clk 0:02:18.6]} 13... Nc6 {[%clk 0:02:51.8]}
14. Rd1 {[%clk 0:02:14.1]} 14... Nb4 {[%clk 0:02:50.9]} 15. Qe2 {[%clk
0:02:13.6]} 15... Qb6 {[%clk 0:02:45.6]} 16. Bd2 {[%clk 0:02:02.8]} 16... d4
{[%clk 0:02:36.7]} 17. exd4 {[%clk 0:01:59]} 17... cxd4 {[%clk 0:02:37.6]} 18.
Na2 {[%clk 0:01:49.6]} 18... Nxa2 {[%clk 0:02:30.9]} 19. Rxa2 {[%clk 0:01:47.7]}
19... Nd5 {[%clk 0:02:23.2]} 20. Raa1 {[%clk 0:01:39.5]} 20... Nf4 {[%clk
0:02:18.3]} 21. Bxf4 {[%clk 0:01:36]} 21... Rxf4 {[%clk 0:02:19.2]} 22. Nd2
{[%clk 0:01:24.2]} 22... d3 {[%clk 0:02:14.8]} 23. Qxd3 {[%clk 0:01:08.1]} 23...
Qxf2+ {[%clk 0:02:12.6]} 24. Kh1 {[%clk 0:00:56.9]} 24... Bxg2# {[%clk
0:02:13.5]} 0-1